bitfinex/quotes_BTCUSD_20251124
["timestamp","ask_amount","ask_price","bid_price","bid_amount"]
[1763966911987,0.323,87229.0,87217.0,0.10905125]
[1763966912190,0.323,87229.0,87218.0,0.02095124]
[1763966914279,0.02487,87248.0,87218.0,0.02095124]
[1763966914280,0.323,87239.0,87218.0,0.02095124]
[1763966914704,0.323,87239.0,87218.0,0.02293104]
[1763966914984,0.323,87239.0,87231.0,0.10905125]
[1763966915167,0.59319975,87240.0,87232.0,0.02292736]
[1763966915375,0.02545,87238.0,87203.0,0.16115374]
[1763966915586,0.323,87219.0,87217.0,0.10905125]
[1763966915860,0.323,87219.0,87218.0,0.001]
[1763966916176,0.323,87219.0,87203.0,0.10916892]
[1763966916589,0.323,87219.0,87217.0,0.10905125]
[1763966916801,0.00694521,87222.0,87217.0,0.10905125]
[1763966917050,0.00694521,87222.0,87218.0,0.02293104]
[1763966917389,0.00694521,87222.0,87217.0,0.10905125]
[1763966918165,0.00694521,87222.0,87218.0,0.02293104]
[1763966918705,0.00694521,87222.0,87217.0,0.10905125]
[1763966918954,0.03239521,87222.0,87203.0,0.10916892]
[1763966919298,0.323,87212.0,87203.0,0.10916892]
[1763966919536,0.323,87212.0,87203.0,0.00011767]
[1763966919678,0.01907521,87211.0,87203.0,0.00011767]
[1763966920702,0.01907521,87211.0,87203.0,0.00111767]
[1763966921698,0.01719,87204.0,87203.0,0.00111767]
[1763966922019,0.01719,87204.0,87203.0,0.00011767]
[1763966922216,0.04264,87204.0,87203.0,0.00111767]
[1763966922794,0.04264,87204.0,87203.0,0.00011767]
[1763966922994,0.05477,87204.0,87203.0,0.00011767]
[1763966923604,0.02413608,87204.0,87203.0,0.00011767]
[1763966924044,2.02413608,87204.0,87203.0,0.00011767]
[1763966925419,2.02513608,87204.0,87203.0,0.00011767]
[1763966925669,2.37483608,87204.0,87203.0,0.00011767]
[1763966926145,2.51204552,87204.0,87203.0,0.00011767]
[1763966927599,2.46243586,87204.0,87203.0,0.00011767]
[1763966930722,2.41033337,87204.0,87203.0,0.00011767]
[1763966931390,2.43155117,87204.0,87203.0,0.00011767]
[1763966932368,2.41033337,87204.0,87203.0,0.00011767]
[1763966932785,2.02613608,87204.0,87203.0,0.00011767]
[1763966932988,2.34913608,87204.0,87203.0,0.00011767]
[1763966933201,2.34813608,87204.0,87203.0,0.00011767]
[1763966933605,2.37483608,87204.0,87203.0,0.00011767]
[1763966934436,2.37383608,87204.0,87203.0,0.00011767]
[1763966934890,2.37483608,87204.0,87203.0,0.00011767]
[1763966935975,2.34813608,87204.0,87203.0,0.00011767]
[1763966936353,2.37483608,87204.0,87203.0,0.00011767]
[1763966938367,0.324,87204.0,87203.0,0.00011767]
[1763966939340,0.34027,87204.0,87203.0,0.00011767]
[1763966940109,0.36697,87204.0,87203.0,0.00011767]
[1763966940719,0.39519496,87204.0,87203.0,0.00011767]
[1763966941121,2.39519496,87204.0,87203.0,0.00011767]
[1763966941892,2.44729745,87204.0,87203.0,0.00011767]
[1763966942067,2.12429745,87204.0,87203.0,0.00011767]
[1763966942728,2.12329745,87204.0,87203.0,0.00011767]
[1763966942931,2.15779565,87204.0,87203.0,0.00011767]
[1763966943374,2.20740531,87204.0,87203.0,0.00011767]
[1763966944054,2.76175258,87204.0,87203.0,0.00011767]
[1763966944255,2.76587924,87204.0,87203.0,0.00011767]
[1763966944468,0.87080895,87160.0,87142.0,0.05210249]
[1763966944677,0.87080895,87160.0,87155.0,0.10905125]
[1763966946314,0.87080895,87160.0,87155.0,0.11005125]
[1763966946934,0.323,87159.0,87155.0,0.11005125]
[1763966947134,0.33807451,87159.0,87155.0,0.001]
[1763966947335,0.33807451,87159.0,87155.0,0.002]
[1763966947941,0.33807451,87159.0,87155.0,0.001]
[1763966948391,0.33807451,87159.0,87155.0,0.002]
[1763966951994,0.0171,87156.0,87155.0,0.002]
[1763966952438,0.35093451,87159.0,87155.0,0.002]
[1763966952616,0.02133213,87158.0,87155.0,0.002]
[1763966952842,0.02133213,87157.0,87155.0,0.002]
[1763966953031,0.02133213,87156.0,87155.0,0.002]
[1763966953226,0.03843213,87156.0,87155.0,0.002]
[1763966953430,0.06289213,87156.0,87142.0,0.0003922]
[1763966953640,0.323,87151.0,87142.0,0.0003922]
[1763966956663,0.323,87151.0,87142.0,0.02334324]
[1763966956851,0.33807451,87159.0,87142.0,0.02334324]
[1763966957045,0.02132312,87158.0,87142.0,0.02334324]
[1763966957185,0.02132312,87157.0,87142.0,0.02334324]
[1763966957397,0.02132312,87156.0,87142.0,0.02334324]
[1763966957612,0.02132312,87155.0,87142.0,0.02334324]
[1763966957812,0.323,87159.0,87142.0,0.02334324]
[1763966958008,0.323,87159.0,87142.0,0.0013922]
[1763966958009,0.323,87151.0,87142.0,0.0013922]
[1763966958222,0.323,87151.0,87142.0,0.0003922]
[1763966958421,0.323,87151.0,87142.0,0.0013922]
[1763966958621,0.323,87151.0,87142.0,0.0023922]
[1763966959225,0.87080895,87152.0,87142.0,0.02534324]
[1763966959436,0.323,87151.0,87142.0,0.02534324]
[1763966959636,0.323,87151.0,87142.0,0.02334324]
[1763966960083,0.323,87151.0,87142.0,0.02534324]
[1763966960283,0.323,87151.0,87142.0,0.0023922]
[1763966960485,0.323,87151.0,87142.0,0.02334324]
[1763966960738,0.323,87151.0,87142.0,0.02434324]
[1763966960905,0.323,87151.0,87142.0,0.02534324]
[1763966961414,0.323,87159.0,87142.0,0.02534324]
[1763966961616,0.02131838,87158.0,87142.0,0.02534324]
[1763966961837,0.02131838,87157.0,87142.0,0.02534324]
[1763966962048,0.02131838,87156.0,87142.0,0.02534324]
[1763966962253,0.02131838,87155.0,87142.0,0.02534324]
[1763966962474,0.02131838,87154.0,87142.0,0.02534324]
[1763966962676,0.0226561,87158.0,87142.0,0.02434324]
[1763966962861,0.02131832,87157.0,87142.0,0.02334324]
[1763966963023,0.02131832,87156.0,87142.0,0.02334324]
[1763966963223,0.323,87151.0,87142.0,0.02334324]
[1763966963618,0.323,87151.0,87142.0,0.02434324]
[1763966964063,0.323,87151.0,87142.0,0.02334324]
[1763966964323,0.323,87159.0,87142.0,0.02434324]
[1763966964597,0.02132538,87158.0,87142.0,0.02534324]
[1763966964773,0.02132538,87157.0,87142.0,0.02534324]
[1763966965023,0.02132538,87156.0,87142.0,0.02534324]
[1763966965230,0.02132538,87155.0,87142.0,0.02534324]
[1763966965361,0.323,87159.0,87142.0,0.02534324]
[1763966965564,0.02132947,87158.0,87142.0,0.02534324]
[1763966965764,0.02132947,87157.0,87142.0,0.0013922]
[1763966965966,0.02132947,87156.0,87142.0,0.0023922]
[1763966966173,0.02133003,87155.0,87142.0,0.0023922]
[1763966966534,0.323,87159.0,87142.0,0.0003922]
[1763966966738,0.02133618,87158.0,87142.0,0.02434324]
[1763966966870,0.02133618,87157.0,87142.0,0.02434324]
[1763966967066,0.323,87159.0,87142.0,0.02434324]
[1763966967263,0.02133847,87158.0,87142.0,0.0013922]
[1763966967468,0.02133847,87157.0,87142.0,0.02334324]
[1763966967723,0.323,87159.0,87142.0,0.02334324]
[1763966967724,0.02133847,87156.0,87142.0,0.0003922]
[1763966967926,0.323,87159.0,87142.0,0.0023922]
[1763966968125,0.0213445,87158.0,87142.0,0.0023922]
[1763966968361,0.0213445,87157.0,87142.0,0.0023922]
[1763966968515,0.323,87159.0,87142.0,0.02534324]
[1763966969434,0.323,87159.0,87142.0,0.02334324]
[1763966969632,0.323,87159.0,87142.0,0.02434324]
[1763966970219,0.323,87159.0,87142.0,0.02534324]
[1763966970613,0.323,87159.0,87142.0,0.02434324]
[1763966970872,0.323,87159.0,87142.0,0.02534324]
[1763966972464,0.323,87169.0,87155.0,0.10905125]
[1763966972690,0.02137261,87168.0,87155.0,0.10905125]
[1763966972905,0.02137261,87167.0,87155.0,0.10905125]
[1763966973116,0.33783318,87169.0,87155.0,0.10905125]
[1763966973352,0.01483318,87169.0,87155.0,0.10905125]
[1763966973554,0.33783318,87169.0,87155.0,0.10905125]
[1763966973758,0.87080895,87170.0,87156.0,0.02294735]
[1763966974171,0.323,87169.0,87156.0,0.02294735]
[1763966974592,0.323,87169.0,87155.0,0.10905125]
[1763966974811,0.02292618,87168.0,87155.0,0.10905125]
[1763966975030,0.04646618,87168.0,87155.0,0.10905125]
[1763966975442,0.02292618,87168.0,87142.0,0.0003922]
[1763966975590,0.323,87151.0,87142.0,0.0003922]
[1763966976755,0.323,87159.0,87142.0,0.0013922]
[1763966977131,0.323,87159.0,87142.0,0.0023922]
[1763966978446,0.33582,87159.0,87142.0,0.0023922]
[1763966978646,0.33582,87159.0,87142.0,0.0013922]
[1763966979024,0.33582,87159.0,87142.0,0.0023922]
[1763966980015,0.33582,87159.0,87142.0,0.0003922]
[1763966980219,0.33582,87159.0,87142.0,0.0013922]
[1763966980391,0.33582,87159.0,87142.0,0.0023922]
[1763966980978,0.323,87159.0,87142.0,0.0023922]
[1763966981788,0.323,87159.0,87155.0,0.10905125]
[1763966981995,0.323,87159.0,87156.0,0.02294735]
[1763966982195,0.323,87169.0,87156.0,0.02294735]
[1763966982545,0.323,87169.0,87168.0,0.00242956]
[1763966982774,0.01282,87195.0,87168.0,0.00242956]
[1763966982982,0.87080895,87190.0,87176.0,0.10905125]
[1763966983178,0.87080895,87190.0,87184.0,0.00192676]
[1763966983502,0.323,87189.0,87184.0,0.00192676]
[1763966984143,0.323,87189.0,87184.0,0.00204442]
[1763966985302,0.87080895,87190.0,87184.0,0.00204442]
[1763966985713,0.323,87189.0,87184.0,0.00204442]
[1763966986139,0.323,87189.0,87184.0,0.00304442]
[1763966986390,0.323,87189.0,87184.0,0.00204442]
[1763966986580,0.323,87189.0,87184.0,0.00304442]
[1763966986782,0.323,87189.0,87184.0,0.00404442]
[1763966986939,0.01500913,87195.0,87184.0,0.00304442]
[1763966987141,0.02292618,87194.0,87184.0,0.00304442]
[1763966987798,0.0116,87196.0,87184.0,0.00304442]
[1763966987953,0.01222724,87195.0,87184.0,0.00304442]
[1763966988164,0.01222724,87195.0,87184.0,0.00404442]
[1763966988690,0.323,87193.0,87184.0,0.00304442]
[1763966989039,0.02292618,87192.0,87184.0,0.00204442]
[1763966989457,0.0277,87185.0,87184.0,0.00204442]
[1763966989882,0.05107,87185.0,87184.0,0.00304442]
[1763966990094,0.02753638,87185.0,87184.0,0.00404442]
[1763966990271,0.02292618,87188.0,87184.0,0.00304442]
[1763966990723,0.02292618,87188.0,87184.0,0.00404442]
[1763966990928,0.02292618,87188.0,87184.0,0.00304442]
[1763966991134,0.01591087,87188.0,87184.0,0.00204442]
[1763966991335,0.02292618,87188.0,87184.0,0.00304442]
[1763966991786,0.02292618,87188.0,87184.0,0.00204442]
[1763966992444,0.0161,87185.0,87184.0,0.00204442]
[1763966992658,0.03902618,87185.0,87184.0,0.00204442]
[1763966992881,0.04641878,87185.0,87184.0,0.00204442]
[1763966994581,0.03947,87185.0,87184.0,0.00204442]
[1763966994806,0.0161,87185.0,87184.0,0.00204442]
[1763966995472,0.03947,87185.0,87184.0,0.00204442]
[1763966995918,0.0277,87185.0,87184.0,0.00204442]
[1763966997823,0.05107,87185.0,87184.0,0.00204442]
[1763966998838,0.0277,87185.0,87184.0,0.00204442]
[1763967000477,0.05107,87185.0,87184.0,0.00204442]
[1763967000679,0.02655308,87185.0,87184.0,0.00204442]
[1763967000883,0.323,87193.0,87184.0,0.00204442]
[1763967001092,0.0116,87189.0,87184.0,0.00204442]
[1763967001908,0.0161,87185.0,87184.0,0.00204442]
[1763967002314,0.03947,87185.0,87184.0,0.00204442]
[1763967007861,2.36941916,87185.0,87184.0,0.00204442]
[1763967008796,2.37041916,87185.0,87184.0,0.00204442]
[1763967009412,2.1753982,87185.0,87184.0,0.00204442]
[1763967009584,2.1920982,87185.0,87184.0,0.00204442]
[1763967009930,2.23725153,87185.0,87184.0,0.00204442]
[1763967010405,2.24725153,87185.0,87184.0,0.00204442]
[1763967010617,2.25096797,87185.0,87184.0,0.00204442]
[1763967011445,2.27411797,87185.0,87184.0,0.00204442]
[1763967011688,2.27511797,87185.0,87184.0,0.00204442]
[1763967011897,2.26340153,87185.0,87184.0,0.00204442]
[1763967012455,2.27477153,87185.0,87184.0,0.00204442]
[1763967014906,2.22266904,87185.0,87184.0,0.00204442]
[1763967015127,1.84277486,87185.0,87184.0,0.00204442]
[1763967015242,2.16577486,87185.0,87184.0,0.00204442]
[1763967015785,2.18692486,87185.0,87184.0,0.00204442]
[1763967015995,2.18792486,87185.0,87184.0,0.00204442]
[1763967016240,1.94882923,87185.0,87184.0,0.00204442]
[1763967016417,2.36385,87185.0,87184.0,0.00204442]
[1763967016631,0.36385,87185.0,87184.0,0.00204442]
[1763967018202,0.323,87185.0,87184.0,0.00204442]
[1763967019075,0.3397,87185.0,87184.0,0.00204442]
[1763967019277,0.36385,87185.0,87184.0,0.00204442]
[1763967019905,2.38525117,87185.0,87184.0,0.00204442]
[1763967020045,2.40820142,87185.0,87184.0,0.00204442]
[1763967021052,2.40920142,87185.0,87184.0,0.00204442]
[1763967021456,2.40820142,87185.0,87184.0,0.00204442]
[1763967021656,2.40920142,87185.0,87184.0,0.00204442]
[1763967022367,2.41020142,87185.0,87184.0,0.00204442]
[1763967022560,2.05210249,87166.0,87139.0,0.01137]
[1763967022744,0.0167,87141.0,87140.0,0.2507922]
[1763967023107,0.60430084,87150.0,87140.0,0.2507922]
[1763967023313,0.59356084,87150.0,87149.0,0.01137]
[1763967023509,2.0,87158.0,87149.0,0.01137]
[1763967024459,0.323,87157.0,87149.0,0.01137]
[1763967025757,0.02925,87150.0,87140.0,0.2507922]
[1763967025975,0.25876308,87141.0,87140.0,0.2507922]
[1763967026153,2.35225,87141.0,87140.0,0.2507922]
[1763967026358,2.38334954,87141.0,87140.0,0.2507922]
[1763967026553,2.43922308,87141.0,87140.0,0.2507922]
[1763967026958,2.43922308,87141.0,87140.0,0.2517922]
[1763967027160,2.41787064,87141.0,87140.0,0.2517922]
[1763967028164,2.54191592,87141.0,87140.0,0.2507922]
[1763967028373,2.54291592,87141.0,87140.0,0.2507922]
[1763967030935,2.54291592,87141.0,87110.0,0.0002]
[1763967030936,0.05210249,87129.0,87110.0,0.0002]
[1763967031160,2.46130125,87121.0,87120.0,0.00045395]
[1763967031768,2.48545125,87121.0,87120.0,0.00045395]
[1763967032045,2.48545125,87121.0,87120.0,0.00101986]
[1763967033403,2.53506091,87121.0,87120.0,0.00101986]
[1763967033618,2.48545125,87121.0,87120.0,0.00101986]
[1763967034257,2.3764,87121.0,87120.0,0.00101986]
[1763967034457,2.35425,87121.0,87120.0,0.00101986]
[1763967035066,2.35325,87121.0,87120.0,0.00101986]
[1763967035270,2.37704,87121.0,87120.0,0.00101986]
[1763967035492,2.37804,87121.0,87120.0,0.00101986]
[1763967035907,2.35325,87121.0,87120.0,0.00101986]
[1763967039207,2.33655,87121.0,87120.0,0.00101986]
[1763967039746,0.324,87121.0,87120.0,0.01546986]
[1763967040149,0.001,87121.0,87120.0,0.02991986]
[1763967040273,0.001,87121.0,87120.0,0.01546986]
[1763967040829,0.323,87129.0,87120.0,0.01546986]
[1763967041007,0.323,87129.0,87120.0,0.01490395]
[1763967041215,0.323,87129.0,87120.0,0.01590395]
[1763967041825,0.60611084,87130.0,87120.0,0.01490395]
[1763967042593,0.60611084,87130.0,87120.0,0.00045395]
[1763967043899,0.323,87129.0,87120.0,0.00045395]
[1763967046385,0.323,87129.0,87128.0,0.00031437]
[1763967047378,0.60611084,87130.0,87128.0,0.00031437]
[1763967047379,0.01255,87130.0,87128.0,0.00031437]
[1763967047550,0.323,87137.0,87120.0,0.00045395]
[1763967047748,0.02132177,87136.0,87120.0,0.00045395]
[1763967047936,0.323,87129.0,87120.0,0.00045395]
[1763967049558,0.323,87129.0,87128.0,0.01697]
[1763967049778,0.323,87137.0,87128.0,0.01697]
[1763967050061,0.02134514,87136.0,87129.0,0.01697]
[1763967050257,0.323,87137.0,87129.0,0.01697]
[1763967050258,0.02134514,87135.0,87129.0,0.01697]
[1763967050460,0.02134514,87134.0,87129.0,0.01697]
[1763967050685,0.02134514,87133.0,87129.0,0.01697]
[1763967050886,0.02134514,87132.0,87129.0,0.01697]
[1763967051091,0.87165919,87139.0,87120.0,0.00045395]
[1763967051092,0.02134514,87131.0,87130.0,0.01697]
[1763967051289,0.87165919,87140.0,87138.0,0.00694]
[1763967051507,0.02139769,87139.0,87138.0,0.02391]
[1763967051651,0.02139769,87139.0,87138.0,0.00694]
[1763967051851,0.02139769,87139.0,87138.0,0.04088]
[1763967052096,0.87165919,87148.0,87138.0,0.04088]
[1763967052357,0.03281,87139.0,87132.0,0.00694]
[1763967052529,0.03281,87139.0,87129.0,0.001]
[1763967052530,0.01879,87131.0,87129.0,0.001]
[1763967052737,0.04020749,87130.0,87129.0,0.001]
[1763967052944,0.05422749,87130.0,87129.0,0.00128293]
[1763967053169,0.08002749,87130.0,87129.0,0.00128293]
[1763967053338,0.08002749,87130.0,87129.0,0.00028293]
[1763967054578,0.40302749,87130.0,87129.0,0.00028293]
[1763967054756,2.40302749,87130.0,87129.0,0.00028293]
[1763967054958,2.45512998,87130.0,87129.0,0.00028293]
[1763967056292,2.50473964,87130.0,87129.0,0.00028293]
[1763967056745,2.51645589,87130.0,87129.0,0.00028293]
[1763967057501,2.51745589,87130.0,87129.0,0.00028293]
[1763967058218,2.45712998,87130.0,87129.0,0.00028293]
[1763967058779,2.46784428,87130.0,87129.0,0.00028293]
[1763967059987,2.46784274,87130.0,87129.0,0.00028293]
[1763967060188,2.6973848,87130.0,87129.0,0.00028293]
[1763967060392,2.46784274,87130.0,87129.0,0.00028293]
[1763967060594,2.5174524,87130.0,87129.0,0.00028293]
[1763967060800,2.50673964,87130.0,87129.0,0.00028293]
[1763967060999,2.51745482,87130.0,87129.0,0.00028293]
[1763967061226,2.51746911,87130.0,87129.0,0.00028293]
[1763967061398,2.45714427,87130.0,87129.0,0.00028293]
[1763967061603,2.46074802,87130.0,87129.0,0.00028293]
[1763967061946,2.40504178,87130.0,87129.0,0.00028293]
[1763967062153,2.40504178,87130.0,87120.0,0.00045395]
[1763967062364,2.40504178,87130.0,87090.0,0.02316474]
[1763967062365,0.03281,87101.0,87090.0,0.0002]
[1763967062573,2.03281,87091.0,87090.0,0.0002]
[1763967062779,2.40304178,87091.0,87090.0,0.0002989]
[1763967062984,2.43721126,87091.0,87090.0,0.0002989]
[1763967063190,2.45642628,87091.0,87090.0,0.0002989]
[1763967063600,2.50852877,87091.0,87090.0,0.0002989]
[1763967064020,2.50852877,87091.0,87090.0,0.0012989]
[1763967064228,2.50852877,87091.0,87060.0,0.0004]
[1763967064437,2.50852877,87091.0,87000.0,10.0]
[1763967064438,0.01149055,87028.0,87000.0,10.0]
[1763967064646,0.05210249,87007.0,87000.0,10.0]
[1763967064847,0.37510249,87003.0,87001.0,0.02015205]
[1763967065052,0.323,87001.0,87000.0,10.0]
[1763967065254,0.404624,87001.0,87000.0,10.0]
[1763967065458,2.42595715,87001.0,87000.0,10.0]
[1763967065660,2.42607446,87001.0,87000.0,10.0]
[1763967066074,2.44259015,87001.0,87000.0,10.0]
[1763967066250,2.421257,87001.0,87000.0,10.0]
[1763967067041,0.098257,87001.0,87000.0,10.04386]
[1763967067238,0.098257,87001.0,87000.0,10.0]
[1763967068370,2.421257,87001.0,87000.0,10.0]
[1763967068762,2.44246093,87001.0,87000.0,10.00406151]
[1763967069043,0.421257,87001.0,87000.0,10.00506151]
[1763967069956,0.40474131,87001.0,87000.0,10.03109151]
[1763967070708,0.40474131,87001.0,87000.0,10.00506151]
[1763967072496,2.40474131,87001.0,87000.0,9.9705009]
[1763967073291,0.40474131,87001.0,87000.0,9.9705009]
[1763967075158,0.40474131,87001.0,87000.0,10.0143609]
[1763967075361,0.40474131,87001.0,87000.0,9.9705009]
[1763967075786,0.05420131,87001.0,87000.0,10.0143609]
[1763967075987,0.02666131,87001.0,87000.0,10.0143609]
[1763967076389,0.88165918,87010.0,87000.0,10.0143609]
[1763967076590,0.88165918,87010.0,87009.0,0.01783]
[1763967076786,0.00999999,87010.0,87009.0,0.01783]
[1763967076976,0.00999999,87010.0,87009.0,0.04386]
[1763967077175,0.323,87018.0,87009.0,0.05012533]
[1763967077380,0.87165919,87019.0,87018.0,0.03106]
[1763967077592,0.00999999,87020.0,87018.0,0.03106]
[1763967077797,0.00999999,87020.0,87019.0,0.04386]
[1763967078403,0.00999999,87020.0,87018.0,0.01323]
[1763967078696,0.323,87025.0,87018.0,0.001]
[1763967079119,0.00999999,87020.0,87019.0,0.001]
[1763967079322,2.0,87024.0,87019.0,0.002]
[1763967079523,0.323,87023.0,87019.0,0.001]
[1763967080578,0.323,87025.0,87014.0,0.01323]
[1763967080702,0.323,87023.0,87014.0,0.01323]
[1763967081866,0.323,87027.0,87014.0,0.01323]
[1763967082104,0.323,87023.0,87009.0,0.00626533]
[1763967082285,0.323,87018.0,87015.0,0.01323]
[1763967082703,0.323,87018.0,87015.0,0.03926]
[1763967083113,0.323,87018.0,87017.0,0.01323]
[1763967083330,0.323,87024.0,87017.0,0.03106]
[1763967084635,0.31164729,87024.0,87023.0,0.01783]
[1763967084837,0.0154812,87027.0,87023.0,0.01783]
[1763967085022,0.0154812,87027.0,87026.0,0.01783]
[1763967085196,0.87165919,87033.0,87026.0,0.01783]
[1763967085537,0.00999999,87030.0,87026.0,0.02603]
[1763967085771,2.0,87032.0,87026.0,0.02603]
[1763967086209,0.00999999,87030.0,87017.0,0.01323]
[1763967086380,0.87165919,87027.0,87018.0,0.13508125]
[1763967086678,0.323,87026.0,87018.0,0.13508125]
[1763967086906,0.323,87026.0,87009.0,0.00557]
[1763967086907,0.01323,87019.0,87009.0,0.00557]
[1763967087237,0.323,87018.0,87009.0,0.00557]
[1763967087654,0.323,87018.0,87017.0,0.00352558]
[1763967087851,0.34426103,87018.0,87017.0,0.00352558]
[1763967088280,0.02126103,87018.0,87017.0,0.00352558]
[1763967088880,0.02126103,87018.0,87017.0,0.00552558]
[1763967089203,0.02126103,87018.0,87017.0,0.04738558]
[1763967089409,0.03865103,87018.0,87017.0,0.00352558]
[1763967089605,0.02126103,87018.0,87017.0,0.00352558]
[1763967090904,0.02126103,87018.0,87017.0,0.00452558]
[1763967091355,0.02126103,87018.0,87017.0,0.00352558]
[1763967091868,0.02126103,87018.0,87017.0,0.04738558]
[1763967092629,0.02126103,87018.0,87017.0,0.02135558]
[1763967093580,0.170273,87026.0,87017.0,0.04738558]
[1763967093728,0.170273,87026.0,87017.0,0.04386]
[1763967093729,0.01070547,87025.0,87017.0,0.04386]
[1763967093941,0.01070547,87024.0,87017.0,0.01783]
[1763967094169,0.01070547,87023.0,87017.0,0.01783]
[1763967094408,0.01070547,87022.0,87017.0,0.01783]
[1763967094684,0.01070547,87021.0,87018.0,0.03171]
[1763967094840,0.01070547,87020.0,87018.0,0.03171]
[1763967095043,0.01070547,87019.0,87018.0,0.03171]
[1763967095266,0.01070547,87025.0,87018.0,0.03520406]
[1763967095583,0.01070547,87025.0,87018.0,0.03171]
[1763967095927,0.01070547,87025.0,87024.0,0.01594]
[1763967096136,0.01070547,87025.0,87024.0,0.03665]
[1763967097367,0.01070547,87029.0,87024.0,0.03665]
[1763967097703,0.01070547,87028.0,87024.0,0.03665]
[1763967097937,0.01070547,87027.0,87024.0,0.03765]
[1763967098111,0.01070547,87026.0,87024.0,0.03765]
[1763967098315,0.01070547,87025.0,87024.0,0.03765]
[1763967098482,0.01070547,87029.0,87024.0,0.03665]
[1763967098684,0.00999999,87030.0,87024.0,0.03665]
[1763967098685,0.01070547,87028.0,87024.0,0.03665]
[1763967098926,0.01070547,87027.0,87024.0,0.03665]
[1763967099127,0.01070547,87026.0,87025.0,0.006836]
[1763967099668,0.01070547,87031.0,87025.0,0.059256]
[1763967099844,0.01070547,87026.0,87025.0,0.038546]
[1763967100071,0.01070547,87026.0,87025.0,0.006836]
[1763967100279,0.01070547,87031.0,87024.0,0.01594]
[1763967100449,0.01070547,87030.0,87024.0,0.01694]
[1763967100676,0.01070547,87029.0,87025.0,0.03171]
[1763967100852,0.01070547,87028.0,87025.0,0.03171]
[1763967101062,0.01070547,87027.0,87025.0,0.03171]
[1763967101398,0.01070547,87026.0,87025.0,0.03171]
[1763967101568,0.01070547,87031.0,87025.0,0.03171]
[1763967101724,0.01070547,87030.0,87025.0,0.03171]
[1763967101924,0.01070547,87029.0,87025.0,0.03171]
[1763967102124,0.01070547,87028.0,87025.0,0.03271]
[1763967102329,0.01070547,87027.0,87025.0,0.03271]
[1763967102533,0.01070547,87026.0,87025.0,0.03271]
[1763967102754,0.01070547,87026.0,87025.0,0.03171]
[1763967102972,0.01070547,87032.0,87025.0,0.05242]
[1763967103201,0.01070547,87031.0,87026.0,0.006836]
[1763967103518,0.02089,87026.0,87025.0,0.001]
[1763967103720,0.03159547,87026.0,87018.0,0.01594]
[1763967103952,0.02089,87026.0,87025.0,0.002]
[1763967104138,0.01073436,87026.0,87025.0,0.02171]
[1763967104305,0.01073436,87026.0,87025.0,0.05342]
[1763967104509,0.01073436,87026.0,87025.0,0.060356]
[1763967105694,0.03222068,87026.0,87025.0,0.060356]
[1763967106118,0.02148632,87026.0,87025.0,0.060356]
[1763967106329,0.02149324,87026.0,87025.0,0.061356]
[1763967106539,0.02149324,87026.0,87025.0,0.06462945]
[1763967106754,0.02149324,87026.0,87025.0,0.06362945]
[1763967106956,0.02149324,87026.0,87025.0,0.06262945]
[1763967107162,0.02149324,87026.0,87025.0,0.06462945]
[1763967107372,0.02149324,87026.0,87025.0,0.02598345]
[1763967107583,0.03223149,87026.0,87025.0,0.00427345]
[1763967107807,0.03223149,87026.0,87025.0,0.05844345]
[1763967108222,0.03223149,87026.0,87025.0,0.05744345]
[1763967108593,0.03223149,87026.0,87025.0,0.05844345]
[1763967108961,0.03223149,87026.0,87025.0,0.02693345]
[1763967109159,0.03223149,87026.0,87025.0,0.00527345]
[1763967111030,0.03223149,87026.0,87025.0,0.05844345]
[1763967111231,0.03223149,87026.0,87025.0,0.00527345]
[1763967111435,0.03223149,87026.0,87025.0,0.00427345]
[1763967111693,0.03223149,87026.0,87025.0,0.00527345]
[1763967112249,0.05233149,87026.0,87025.0,0.00527345]
[1763967112449,0.03223149,87026.0,87025.0,0.00527345]
[1763967112834,0.05233149,87026.0,87025.0,0.00527345]
[1763967113214,0.03223149,87026.0,87025.0,0.00527345]
[1763967114180,0.02149324,87026.0,87025.0,0.00527345]
[1763967115022,2.0,87034.0,87025.0,0.00527345]
[1763967115181,0.01074125,87033.0,87025.0,0.002]
[1763967115546,0.61119041,87035.0,87025.0,0.002]
[1763967115547,0.01074125,87032.0,87025.0,0.002]
[1763967115747,0.01074125,87031.0,87025.0,0.002]
[1763967115951,0.01074125,87030.0,87025.0,0.001]
[1763967116253,0.61119041,87035.0,87023.0,0.01524]
[1763967116396,2.0,87033.0,87023.0,0.01524]
[1763967116628,0.01074191,87032.0,87023.0,0.01524]
[1763967116946,0.01074191,87031.0,87023.0,0.01524]
[1763967117129,0.0207419,87030.0,87023.0,0.01524]
[1763967117326,0.00999999,87030.0,87023.0,0.01524]
[1763967117527,0.00999999,87030.0,87029.0,0.02166]
[1763967117744,0.00999999,87030.0,87029.0,0.028501]
[1763967118492,0.00999999,87030.0,87023.0,0.01524]
[1763967118781,0.01518,87029.0,87018.0,0.01524]
[1763967119744,0.00999999,87020.0,87009.0,0.00557]
[1763967119945,0.00999999,87020.0,87009.0,0.03708]
[1763967119946,0.323,87018.0,87009.0,0.03708]
[1763967120591,0.323,87018.0,87009.0,0.00557]
[1763967120791,0.00999999,87010.0,86990.0,0.01524]
[1763967120991,0.323,87009.0,86991.0,0.03151]
[1763967121191,0.35963,87009.0,86991.0,0.03151]
[1763967121369,0.35963,87009.0,87008.0,0.00380928]
[1763967121620,0.37973,87009.0,87008.0,0.00380928]
[1763967121781,0.323,87009.0,87008.0,0.00380928]
[1763967122610,2.38053,87009.0,87008.0,0.00380928]
[1763967122827,2.40941067,87009.0,87008.0,0.00380928]
[1763967123052,2.38053,87009.0,87008.0,0.00380928]
[1763967123895,0.323,87009.0,87008.0,0.02583928]
[1763967124185,0.323,87009.0,87008.0,0.03168321]
[1763967124311,0.323,87009.0,87008.0,0.00965321]
[1763967124519,0.323,87009.0,87008.0,0.03168321]
[1763967124858,0.323,87009.0,87008.0,0.06428321]
[1763967125988,0.00999999,87020.0,87008.0,0.06428321]
[1763967126265,0.00999999,87020.0,87001.0,0.13203949]
[1763967126266,0.59601041,87018.0,87009.0,0.06201444]
[1763967126467,0.323,87017.0,87010.0,0.0326]
[1763967126763,0.323,87018.0,87017.0,0.02203]
[1763967126965,0.323,87018.0,87010.0,0.0326]
[1763967127263,0.31151989,87018.0,87017.0,0.02203]
[1763967127813,2.0,87026.0,87017.0,0.05463]